Cogmind - Beta 15 @@@ ROGUE MODE // 2025.08.18 @ 22:05:36 Player: Zen9890 Result: Destroyed by G-47 Trooper with Particle Gun Performance ------------- Evolutions (2) 1000 Regions Visited (4) 800 Robots Destroyed (57) 285 Value Destroyed (1571) 1571 Prototype IDs (6) 120 Alien Tech Used (0) 0 Bonus (0) 0 TOTAL SCORE: 3776 Bonus ------- None Cogmind --------- Core Integrity 0/550 Matter 173/300 Energy 45/100 System Corruption 3% Temperature Cool (45) Movement Core (200) Ox3 Location -8/Storage Parts ------- > --- POWER (1) -------- (None) > --- PROPULSION (3) --- (None) > --- UTILITY (3) ------ Medium Storage Unit > --- WEAPON (4) ------- (None) > --- INVENTORY (10) --- Improved Heat Sink Improved Heat Sink Medium Matter Pod (100) Seismic Detector Light Armor Plating Peak State ------------ > --- POWER ------------ Light Nuclear Core > --- PROPULSION ------- Aluminum Leg Aluminum Leg Carbon-fiber Leg > --- UTILITY ---------- Cooling System Medium Storage Unit Advanced Visual Processing Unit > --- WEAPON ----------- Beam Rifle Heavy Assault Rifle Improved Assault Rifle Gauss Rifle > --- INVENTORY -------- Improved Ion Engine Aluminum Leg Improved Heat Sink Medium Matter Pod Seismic Detector Light Armor Plating Light Assault Rifle Heavy Assault Rifle Grenade Launcher Mining Laser [Rating: 26] Favorites ----------- Power Ion Engine Engine Ion Engine Power Core Light Nuclear Core Propulsion Aluminum Leg Leg Aluminum Leg Utility Medium Storage Unit Device Cooling System Storage Medium Storage Unit Processor Visual Processing Unit Weapon Beam Rifle Energy Gun Beam Rifle Energy Cannon Advanced Beam Cannon Ballistic Gun Improved Assault Rifle Launcher Grenade Launcher Special Weapon Mining Laser Build | -11 -10 -9 -8 -8 ------- Run | Yrd Mat Mat Mat Sto Slots Evolved 4 | . . 2 2 . Power . | . . . . . Propulsion 1 | . . . 1 . Utility 1 | . . 1 . . Weapon 2 | . . 1 1 . Parts Attached 48 | 7 5 22 2 12 Power 11 | 1 . 6 . 4 Engine 7 | 1 . 5 . 1 Core 4 | . . 1 . 3 Reactor . | . . . . . Propulsion 11 | 2 1 6 . 2 Treads . | . . . . . Leg 11 | 2 1 6 . 2 Wheel . | . . . . . Hover . | . . . . . Flight . | . . . . . Utility 9 | 2 4 2 1 . Device 5 | 1 3 1 . . Storage 2 | 1 . 1 . . Processor 2 | . 1 . 1 . Hackware . | . . . . . Protection . | . . . . . Artifact . | . . . . . Weapon 17 | 2 . 8 1 6 Energy Gun 7 | 1 . 4 1 1 Energy Cannon 1 | . . 1 . . Ballistic Gun 7 | 1 . 3 . 3 Ballistic Cannon . | . . . . . Launcher 1 | . . . . 1 Special Weapon 1 | . . . . 1 Impact Weapon . | . . . . . Slashing Weapon . | . . . . . Piercing Weapon . | . . . . . Special Melee Weapon . | . . . . . Unidentified Prototypes 2 | . . 2 . . Parts Lost 22 | . . 2 . 20 Power 3 | . . 1 . 2 Propulsion 7 | . . 1 . 6 Utility 2 | . . . . 2 Weapon 10 | . . . . 10 Highest Loss Streak 14 | . . 1 . 14 To Critical Strikes . | . . . . . Average Backups 8 | 3 7 8 8 9 Power 1 | . 1 1 1 1 Propulsion 1 | 1 2 1 1 . Utility 2 | . 2 1 3 3 Weapon 3 | . 2 4 3 3 Tool/Special . | . . . . . Unused Backups 13 | . 2 5 . 6 Power 1 | . 1 . . . Propulsion 2 | . . 2 . . Utility 6 | . . . . 6 Weapon 4 | . 1 3 . . Tool/Special . | . . . . . Average Slot Usage (%) 96 | . 100 99 99 90 Engine 7 | . 14 9 9 . Core 3 | . . 1 . 8 Leg 23 | . 28 21 27 22 Device 10 | . 13 10 9 8 Storage 10 | . 14 11 9 9 Processor 8 | . . 11 9 8 Energy Gun 12 | . 14 11 17 13 Energy Cannon 1 | . . 3 . . Ballistic Gun 17 | . 14 17 18 18 Peak Build Rating 26 | 9 9 18 21 26 Average Rating 15 | 6 7 14 20 21 On Entrance 11 | . 9 8 17 21 Naked Turns . | . . . . . Heaviest Build 31 | 15 15 28 31 30 Greatest Support 35 | 20 20 20 30 35 Greatest Overweight (x) 4 | 2 . 1 1 4 Average Overweight (x) . | . . . 1 . Largest Inventory Capacity 10 | 8 8 10 10 10 Average Capacity 9 | 7 8 9 10 10 Most Carried 10 | 7 8 10 9 10 Average Carried 8 | 3 7 8 8 9 Final Capacity 10 | 8 8 10 10 10 Final Carried 10 | 7 8 10 9 5 Class Distribution -------------------- 63% | Scavenger-Skirmisher 22% | Mutant 14% | Skirmisher Dominant Class ---------------- Mutant | -10/Materials Scavenger-Skirmisher | -9/Materials Scavenger-Skirmisher | -8/Materials Scavenger-Skirmisher | -8/Storage Resources | -11 -10 -9 -8 -8 ----------- Run | Yrd Mat Mat Mat Sto Matter Collected 1229 | 279 121 497 40 292 Remotely . | . . . . . Salvage Created 2040 | 57 256 677 40 1010 Parts 132 | 9 17 49 2 55 Haulers Intercepted 2 | . . 1 . 1 Recyclers Shooed 5 | . 2 1 . 2 Parts Field Recycled . | . . . . . Retrieved Matter . | . . . . . Parts Self-Destructed . | . . . . . Prevented . | . . . . . Kills | -11 -10 -9 -8 -8 ------- Run | Yrd Mat Mat Mat Sto Combat Hostiles Destroyed 40 | . 5 17 1 17 Guns 34 | . 5 13 1 15 Cannons 4 | . . 4 . . AOE 1 | . . . . 1 Classes Destroyed 12 | 1 4 4 . 3 Worker 3 | . . 1 . 2 Builder 3 | . 1 . . 2 Tunneler 3 | 3 . . . . Hauler 2 | . . 1 . 1 Recycler 3 | . . . . 3 Operator 1 | . 1 . . . Watcher 2 | . 1 . . 1 Swarmer 8 | . . 4 . 4 Grunt 24 | . 5 10 1 8 Brawler 1 | . . . . 1 Sentry 6 | . . 3 . 3 Hunter 1 | . . . . 1 Best Kill Streak 10 | 1 4 3 1 10 Combat Bots Only 5 | . 1 3 1 5 Max Kills in Single Turn 5 | 1 2 2 1 5 Gunslinging 1 | . . . . 1 Exploded 1 | . . . . 1 Melee . | . . . . . Uniques/NPCs Destroyed . | . . . . . Combat | -11 -10 -9 -8 -8 -------- Run | Yrd Mat Mat Mat Sto Hostile Shots Fired 321 | . 25 93 12 191 Missed 79 | . 8 20 1 50 Hits 242 | . 17 73 11 141 Projectile 242 | . 17 73 11 141 Critical Strikes 8 | . . 2 . 6 Damage Taken 3290 | . 195 840 166 2089 Core 794 | . 45 194 31 524 Absorbed by Shields . | . . . . . Regen/Repaired (Parts) 112 | . . . . 112 Core Remaining (%) 77 | 100 82 51 . . Volleys Fired 132 | 3 28 48 3 50 Largest 4 | 2 2 3 4 4 Hottest 158 | 70 70 138 158 158 Shots Fired 371 | 6 56 137 12 160 Gun 347 | 6 56 117 12 156 Cannon 20 | . . 20 . . Launcher 2 | . . . . 2 Special 2 | . . . . 2 Kinetic 203 | 3 28 68 6 98 Thermal 166 | 3 28 69 6 60 Explosive 2 | . . . . 2 Electromagnetic . | . . . . . Robot Hit Streak 16 | 3 6 14 5 16 Robot Miss Streak 5 | 1 3 5 2 4 Penetration Max 1 | . . . . 1 Secondary Targets 4 | . . . . 4 Max Gunslinging Chain 1 | . . . . 1 Shots Hit Robots 237 | 4 35 85 7 106 Core Hits 101 | 3 16 33 2 47 Critical Kills . | . . . . . Critical Parts Destroyed 1 | . . 1 . . Critical Strikes 9 | . 1 4 . 4 Burn 8 | . 1 3 . 4 Destroy 1 | . . 1 . . Melee Attacks . | . . . . . Impact . | . . . . . Slashing . | . . . . . Piercing . | . . . . . Sneak Attacks . | . . . . . Combat Hostiles . | . . . . . Follow-up Attacks . | . . . . . Damage Inflicted 4174 | 53 449 1287 108 2277 Guns 3232 | 53 449 957 108 1665 Cannons 330 | . . 330 . . Explosions 588 | . . . . 588 Melee . | . . . . . Ramming . | . . . . . Kinetic 1934 | 41 188 562 34 1109 Thermal 1652 | 12 261 725 74 580 Explosive 588 | . . . . 588 Electromagnetic . | . . . . . Impact . | . . . . . Slashing . | . . . . . Piercing . | . . . . . Highest Corruption 3 | . . 2 . 3 Average Corruption 2 | . . 2 . 2 Corruption Purged . | . . . . . Corruption Blocked . | . . . . . Effects 17 | . . 6 . 11 Message Errors 5 | . . 1 . 4 Matter Fused 5 | . . 2 . 3 Heat Flow Errors 2 | . . . . 2 Energy Discharges 1 | . . 1 . . Data Loss (minor) 2 | . . 1 . 1 Misfires 2 | . . 1 . 1 Overload Shots . | . . . . . Overflow Damage 147 | . . 13 . 134 Projectiles 13 | . . 13 . . Explosions 134 | . . . . 134 Melee . | . . . . . Knockbacks . | . . . . . Impact . | . . . . . Kinetic . | . . . . . Secondary . | . . . . . Self-Inflicted Damage 54 | . . . . 54 Shots 1 | . . . . 1 Rammed . | . . . . . Targets Rammed . | . . . . . Kicked . | . . . . . Crushed . | . . . . . Highest Temperature 320 | 9 63 320 39 202 Average Temperature 57 | 6 28 91 22 30 Received Heat Transfer 1506 | . 111 342 81 972 Siege Activations . | . . . . . Martial Activations . | . . . . . Shielding Activations . | . . . . . Robots Disrupted . | . . . . . Combat Hostiles . | . . . . . Robots Corrupted . | . . . . . Combat Hostiles . | . . . . . Parts Fried . | . . . . . Impact Corruptions . | . . . . . Robots Melted 1 | . . . . 1 Combat Hostiles 1 | . . . . 1 Parts Melted 8 | . 2 3 1 2 Heat Transferred 4750 | 37 851 1925 185 1752 Parts Sabotaged . | . . . . . Parts Stolen . | . . . . . Parts Stripped . | . . . . . Power Chain Reactions . | . . . . . Alert | -11 -10 -9 -8 -8 ------- Run | Yrd Mat Mat Mat Sto Maximum Alert Level 1 | . . 1 . 1 Low Security (%) 78 | 100 100 61 100 80 Level 1 21 | . . 38 . 19 Level 2 . | . . . . . Level 3 . | . . . . . Level 4 . | . . . . . Level 5 . | . . . . . High Security . | . . . . . Max Security . | . . . . . Peak Influence 272 | 5 72 256 96 272 Initial 96 | . . 21 96 31 Average 110 | 1 34 165 80 106 Influence Increases 1325 | 15 157 542 30 581 Destroy 0b10 Robot/C 800 | . 100 340 20 340 Destroy 0b10 Robot/NC 85 | 15 15 10 . 45 Destroy Leader 218 | . 22 102 10 84 Successful Hack 61 | . 5 41 . 15 Select Force Hacks 30 | . . 30 . . Disable Machine 60 | . . 15 . 45 Destroy Structure 26 | . . 4 . 22 Lose Combat Pursuer 45 | . 15 . . 30 Influence Decreases 1124 | 15 105 364 184 456 Entered New Map 210 | . . 31 134 45 Time Decay 694 | 15 105 313 50 211 Lost Part 220 | . . 20 . 200 Squads Dispatched 14 | . 2 5 3 4 Investigation 9 | . 1 5 1 2 Extermination . | . . . . . Reinforcement 3 | . 1 . 1 1 Assault . | . . . . . Garrison 2 | . . . 1 1 Intercept . | . . . . . Searches Triggered . | . . . . . Construction Impeded 1 | . . . . 1 Haulers Reinforced . | . . . . . Active Scanning Responses . | . . . . . Cargo Convoy Interrupts . | . . . . . Stealth | -11 -10 -9 -8 -8 --------- Run | Yrd Mat Mat Mat Sto Distress Signals 5 | . 1 . . 4 Communications Jammed . | . . . . . Distress Signals . | . . . . . Times Spotted 61 | . 14 20 3 24 Peak Tracking Total 7 | . 4 4 2 7 Tactical Retreats 3 | . 1 . . 2 Traps | -11 -10 -9 -8 -8 ------- Run | Yrd Mat Mat Mat Sto Traps Triggered 2 | . . 1 . 1 Indirectly . | . . . . . Trap Hack Attempts . | . . . . . Triggered . | . . . . . Disarmed . | . . . . . Reprogrammed . | . . . . . Reused . | . . . . . Traps Extracted . | . . . . . Installed . | . . . . . Triggered . | . . . . . Machines | -11 -10 -9 -8 -8 ---------- Run | Yrd Mat Mat Mat Sto Machines Disabled 4 | . . 1 . 3 Max in Single Turn 1 | . . 1 . 1 Machines Repaired . | . . . . . Machines Dismantled . | . . . . . Machines Sabotaged . | . . . . . Overloaded Fab Kills . | . . . . . Hacking | -11 -10 -9 -8 -8 --------- Run | Yrd Mat Mat Mat Sto Machines Accessed 15 | . 3 9 . 3 Terminals 12 | . 3 7 . 2 Fabricators . | . . . . . Repair Stations 1 | . . . . 1 Recycling Units 1 | . . 1 . . Scanalyzers 1 | . . 1 . . Garrison Access . | . . . . . Total Hacks 43 | . 6 28 . 9 Successful 21 | . 1 15 . 5 Failed 22 | . 5 13 . 4 Catastrophic 7 | . 2 3 . 2 Database Lockouts . | . . . . . Manual 20 | . 6 10 . 4 Terminals 32 | . 6 21 . 5 Fabricators . | . . . . . Repair Stations 4 | . . . . 4 Recycling Units 3 | . . 3 . . Scanalyzers 4 | . . 4 . . Garrison Access . | . . . . . Terminal Hacks 11 | . 1 9 . 1 Part Schematic 1 | . . 1 . . Prototype ID Bank 2 | . . 2 . . Emergency Access Points 1 | . . 1 . . Terminal Index 1 | . . 1 . . Hauler Manifests 1 | . . . . 1 Registered Components 1 | . . 1 . . Zone Layout 4 | . 1 3 . . Fabricator Hacks . | . . . . . Repair Station Hacks 4 | . . . . 4 Scan Component 2 | . . . . 2 Repair 2 | . . . . 2 Recycling Unit Hacks 1 | . . 1 . . Report Inventory 1 | . . 1 . . Scanalyzer 4 | . . 4 . . Insert Component 2 | . . 2 . . Analyze 2 | . . 2 . . Garrison Access Hacks . | . . . . . Unauthorized Hacks 1 | . . 1 . . Terminals . | . . . . . Fabricators . | . . . . . Repair Stations . | . . . . . Recycling Units 1 | . . 1 . . Tunnel 1 | . . 1 . . Scanalyzers . | . . . . . Garrison Access . | . . . . . Data Cores Recovered . | . . . . . Used . | . . . . . Hacking Detections 15 | . 3 9 . 3 Full Trace Events 11 | . 3 6 . 2 Feedback Events 1 | . . . . 1 Corruption 1 | . . . . 1 Feedback Blocked . | . . . . . Robot Schematics Acquired . | . . . . . Robots Built . | . . . . . Authchips . | . . . . . Time . | . . . . . Total Robot Build Rating . | . . . . . Part Schematics Acquired 3 | . . 3 . . Parts Built . | . . . . . Authchips . | . . . . . Time . | . . . . . Total Part Build Rating . | . . . . . Parts Repaired 2 | . . . . 2 Time 58 | . . . . 58 Parts Recycled . | . . . . . Recycled Matter . | . . . . . Retrieved Matter . | . . . . . Retrieved Components . | . . . . . Parts Scanalyzed 2 | . . 2 . . Part Schematics Acquired 2 | . . 2 . . Parts Damaged 1 | . . 1 . . Bothacking | -11 -10 -9 -8 -8 ------------ Run | Yrd Mat Mat Mat Sto Used RIF Installer . | . . . . . Robots Hacked . | . . . . . Non-combat . | . . . . . Combat . | . . . . . Robot Hacks Applied . | . . . . . Relay Couplers Released . | . . . . . Fabnet Peak Effective % . | . . . . . Robots Rewired . | . . . . . Allies Hacked . | . . . . . Hacks Repelled . | . . . . . Allies | -11 -10 -9 -8 -8 -------- Run | Yrd Mat Mat Mat Sto Total Allies . | . . . . . Largest Group . | . . . . . Highest-Rated Group . | . . . . . Highest-Rated Ally . | . . . . . Total Orders . | . . . . . Ally Attacks . | . . . . . Total Damage . | . . . . . Kills . | . . . . . Allies Corrupted . | . . . . . Allies Melted . | . . . . . Intel | -11 -10 -9 -8 -8 ------- Run | Yrd Mat Mat Mat Sto Active Infowar (turns) 1541 | 69 159 723 119 471 Optics 1333 | . 20 723 119 471 Terrain 69 | 69 . . . . Seismic 139 | . 139 . . . Robot Analysis Total . | . . . . . Derelict Logs Recovered . | . . . . . Drone Launches . | . . . . . Drone Recoveries . | . . . . . Exploration | -11 -10 -9 -8 -8 ------------- Run | Yrd Mat Mat Mat Sto Turns Passed 1722 | 117 283 723 119 480 Spaces Moved 753 | 75 140 311 50 177 Core 19 | 18 . . . 1 Treads . | . . . . . Legs 734 | 57 140 311 50 176 Wheels . | . . . . . Hover . | . . . . . Flight . | . . . . . Fastest Speed 50 | 50 120 120 190 120 Average Speed 142 | 116 120 161 190 125 Slowest Speed 250 | 150 120 190 190 250 Overloaded Moves . | . . . . . Propulsion Burnouts . | . . . . . Robots Hopped . | . . . . . Potential Cave-ins . | . . . . . Cave-ins Triggered . | . . . . . Exploration Rate (%) 22 | 4 26 32 10 38 Regions Visited 4 Branch Regions 1 Pre-discovered Areas 1 | . . 1 . . Known Exits Taken . | . . . . . Unknown Exits Taken 4 | 1 1 1 1 . Scrap Searched . | . . . . . Spaces Dug . | . . . . . Terrain Destroyed 19 | . . . . 19 Melee . | . . . . . Projectile 1 | . . . . 1 AOE 18 | . . . . 18 Terrain Rammed . | . . . . . Walls Destroyed . | . . . . . Machines Disabled . | . . . . . Actions | -11 -10 -9 -8 -8 --------- Run | Yrd Mat Mat Mat Sto Total 1123 | 98 201 434 66 324 Wait 113 | . 20 16 8 69 Move 749 | 74 139 310 49 177 Hop . | . . . . . Pick Up 40 | 14 4 13 2 7 Fast Attach 7 | . . 2 . 5 Attach 21 | 7 . 5 2 7 Detach 1 | . . 1 . . Swap 28 | . 5 17 2 4 Drop 32 | . 5 22 . 5 Fire 132 | 3 28 48 3 50 Melee . | . . . . . Ram . | . . . . . Kick . | . . . . . Crush . | . . . . . Escape Stasis . | . . . . . Rewire . | . . . . . Trap . | . . . . . Miscellaneous . | . . . . . Route ------- -11/Scrapyard -10/Materials -9/Materials -8/Materials -8/Storage History --------- Turn | Location | Event 32 | -11/Scrapyard | Discovered new exit (range 14) 118 | -11/Scrapyard | Entered Materials 317 | -10/Materials | Build established: Mutant 380 | -10/Materials | Discovered new exit (range 15) 401 | -10/Materials | Entered another Materials area 401 | -9/Materials | Evolved 2 slots: Utility x1, Weapon x1 921 | -9/Materials | Build established: Scavenger-Skirmisher 1073 | -9/Materials | Discovered new exit (range 11) 1124 | -9/Materials | Entered another Materials area 1124 | -8/Materials | Evolved 2 slots: Propulsion x1, Weapon x1 1168 | -8/Materials | Discovered new exit (range 18) 1201 | -8/Materials | Garrison activated, responded to threat 1243 | -8/Materials | Entered Storage 1366 | -8/Storage | Repaired Aluminum Leg 1399 | -8/Storage | Repaired Beam Rifle 1669 | -8/Storage | Garrison activated, responded to threat 1676 | -8/Storage | Lost 3 parts (1n2w) 1698 | -8/Storage | Core integrity fell below 50% 1715 | -8/Storage | Core integrity fell below 20% 1723 | -8/Storage | Destroyed by G-47 Trooper with Particle Gun Last Messages --------------- 01699_ Imp. Ion Engine destroyed. 01699_ G-47 Trooper destroyed. 01699_ Destroyed Lgt. Ion Engine. 01699_ K-01 Serf collects debris. 01702_ Grenade Launcher destroyed. 01704_ K-01 Serf collects debris. 01704_ Y-45 Defender destroyed. 01708_ K-01 Serf collects debris. 01708_ Cooling System destroyed. 01711_ K-01 Serf collects debris. 01713_ Imp. Assault Rifle destroyed. 01714_ Adv. Visual Processing Unit destroyed. 01714_ Critical hit (Burn: +37). 01714_ K-01 Serf collects debris. 01715_ Destroyed Imp. Heat Sink. 01717_ K-01 Serf collects debris. 01717_ Critical hit (Burn: +37). 01719_ Mining Laser destroyed. 01722_ K-01 Serf collects debris. 01723_ System corrupted: Matter fused (-7). Map ----- +----------------------------------------------------+ | ??????????????????????????????????????????????? | | ???????????? ??????????????????????????????? | | ???????????# #???????+#????????????????????? | | #??????????T #??????? ????????????????????? | | ???????????# #??????? ????????????????????? | | ???????????# #??????? ????????????????????? | | ???????????# #??????# ????????????????????? | | ???????????# #??????# #????????????????????? | | ???????????# #??????# #????????????????????? | | ???????????# #??????# #????????????????????? | | ???????????# *! ######## #????????????????????? | | ############ [%!= ###??????????????????? | | % [= % #??????????????????? | | = +??????????????????? | | = #??????????????????? | | #### = % = #??????????????????? | | # """ % ! #??????????????????? | | # """ [ ###????????????????? | | # """ #????????????????? | | * # * #????????????????? | | %+ %% % #????????????????? | | ""*# * k #????????????????? | | "" ###+#+###### # ##### *! #????????????????? | | "" # ########???##ggk##????????????????? | | #### """ ""#????????#; *#?????????????????? | | ???# """ T"#?????????#@ #?????????????????? | | ???# """ ""#?????????# #?????????????????? | | ???# """ ###?????????#=]*#?????????????????? | | ???# """ #???????????#]%[#?????????????????? | | ???# #???????????# ka#?????????????????? | | ???# #???????????# ?????????????????? | | ???# ??????????? ! ! ????????????????? | | ???##########???????????[%Y= ????????????????? | | ???????????????????????? % #???????????????? | | ???????????????????????? % ???????????????? | | ???????????????????????? = ??????????????? | | ???????????????????????? ??????????????? | | ???????????????????????? ####?????????????? | | ????????????????????????######????????????????? | | ??????????????????????????????????????????????? | | ??????????????????????????????????????????????? | | ??????????????????????????????????????????????? | | ??????????????????????????????????????????????? | | ??????????????????????????????????????????????? | | ??????????????????????????????????????????????? | | ??????????????????????????????????????????????? | | ??????????????????????????????????????????????? | | ??????????????????????????????????????????????? | | ??????????????????????????????????????????????? | | | +----------------------------------------------------+ Best States ------------- Heat Dissipation 53 Energy Generation 14 Energy Capacity 265 Matter Stores 300 Matter Capacity 300 Sight Range 20 Terrain Scan Range 16 Terrain Scan Density 10 Evasion (%) 55 Item Schematics ----------------- Grenade Launcher | -9/Materials | Scanalyzed Adv. Beam Cannon | -9/Materials | Scanalyzed Imp. Aluminum Leg | -9/Materials | Hacked Robot Schematics ------------------ None Fabricated ------------ Nothing Repaired ---------- Aluminum Leg | 23% | -8/Storage Beam Rifle | 42% | -8/Storage Alien Tech Used ----------------- None Achievements -------------- None Challenges ------------ None Game ------ Seed GravjetGravjetProjector Manual? 0 Play Time 00:41:04 Cumulative 23.5 hours Start 2025.08.18 @ 21:23:20 End 2025.08.18 @ 22:05:36 Sessions 1 Manual Loads 0 Difficulty Rogue Special Mode None Game No. 33 Rogue 33 Adventurer 0 Explorer 0 Win Type - Total 0 Types 0/0/0/0/0/0/0/0/0/0 Lore% 13 Gallery% 28 Achievement% 27 Wizard Run 0 Options --------- Layout 1 ASCII 0 Keyboard 0 Movement Mouse Keybinds 0 Fullscreen 1 Font 24/Smallcaps Map View 50x35 Zoom Use 0% Tactical HUD 1 Map Filters NONE Filters NONE Steam 1 RUN: 4797f244-e2bd-4c7d-b25f-22a21260a1fb